No of Transactions,Dept_Family,Entity_Name,Cert Date,Supplier Name,Reference,Gross Amt,Group/Department,Type of Expenditure - Subjective Codes
1,DCMS,Historic England,10/01/2024,39 Essex Chambers LLP,0042005284,"13,260.00",Governance & Legal-Governance & Legal Department,Legal Fees
2,DCMS,Historic England,10/01/2024,39 Essex Chambers LLP,0042005284,"13,140.00",Governance & Legal-Governance & Legal Department,Legal Fees
3,DCMS,Historic England,03/01/2024,AE Facilities Management Limited,0042004942,"56,789.86",Corporate Services-Facilities Management,Maintenance
4,DCMS,Historic England,25/01/2024,AE Facilities Management Limited,0042005434,"16,718.64",Corporate Services-Facilities Management,Maintenance
5,DCMS,Historic England,25/01/2024,AE Facilities Management Limited,0042005434,"18,187.99",Corporate Services-Facilities Management,Maintenance
6,DCMS,Historic England,25/01/2024,AE Facilities Management Limited,0042005434,"1,609.54",Corporate Services-Facilities Management,Maintenance
7,DCMS,Historic England,25/01/2024,AE Facilities Management Limited,0042005434,"10,558.54",Corporate Services-Facilities Management,Office Cleaning
8,DCMS,Historic England,25/01/2024,AE Facilities Management Limited,0042005434,"9,715.15",Corporate Services-Facilities Management,Security
9,DCMS,Historic England,16/01/2024,Allies and Morrison LLP,0042005604,"30,000.00",Business Improvement-Grants,Historic Env Commissions VAT
10,DCMS,Historic England,16/01/2024,Allies and Morrison LLP,0042005604,"8,400.00",Business Improvement-Grants,Historic Env Commissions VAT
11,DCMS,Historic England,31/01/2024,"BNP Paribas Real Estate, Rent / Services",0042005698,"-15,839.54",Governance & Legal-Office Estate,Building Service Charges
12,DCMS,Historic England,31/01/2024,British Tourist Authority,0083002278,"30,000.00",Business Improvement-Programmes,Grants Other Grants
13,DCMS,Historic England,09/01/2024,CDW UK,0042004915,"37,416.46",Corporate Services-IMT,IMT Equipment <10k
14,DCMS,Historic England,08/01/2024,Croft Building and Conservation Ltd,0042005280,"34,204.37",Shrewsbury Flax Mill Maltings-Shrewsbury Flax Mill Maltings,Works (Non Office)
15,DCMS,Historic England,31/01/2024,EDF  ,0030001608,"42,992.84",Corporate Services-Facilities Management,Electricity
16,DCMS,Historic England,12/01/2024,FSI (FM Solutions) Ltd,0042003946,"63,414.72",Corporate Services-Facilities Management,IT Licences <10k
17,DCMS,Historic England,15/01/2024,FSI (FM Solutions) Ltd,0042005452,"62,353.15",Corporate Services-Facilities Management,IT Licences <10k
18,DCMS,Historic England,12/01/2024,FSI (FM Solutions) Ltd,0042005523,"-63,414.72",Corporate Services-Facilities Management,IT Licences <10k
19,DCMS,Historic England,01/02/2024,Fylde Borough Council,0083002281,"100,453.00",Regions Group-High Str (HAZ) - Regions,Grants Area
20,DCMS,Historic England,24/01/2024,Gloucester City Council,0082006457,"55,040.00",Regions Group-South West - RD,Grants Historic Buildings
21,DCMS,Historic England,22/01/2024,GTT-EMEA Ltd,0042005438,"48,558.97",Corporate Services-IMT,Network Contracts
22,DCMS,Historic England,01/02/2024,Knowsley Metropolitan Borough Council,0083002283,"33,809.00",Regions Group-High Str (HAZ) - Regions,Grants Area
23,DCMS,Historic England,31/01/2024,Lancashire Hotels Ltd,0042005824,"10,678.20",Policy & Evidence-Sector Resilience & Skills,Subsistence
24,DCMS,Historic England,31/01/2024,Lancashire Hotels Ltd,0042005824,"32,034.60",Policy & Evidence-Sector Resilience & Skills,Subsistence
25,DCMS,Historic England,31/01/2024,Lancashire Hotels Ltd,0042005861,"-32,034.60",Policy & Evidence-Sector Resilience & Skills,Subsistence
26,DCMS,Historic England,18/01/2024,London Borough of Haringey,0083002266,"63,549.00",Regions Group-High Str (HAZ) - Regions,Grants Area
27,DCMS,Historic England,26/01/2024,North East Lincolnshire,0090516688,"130,839.28",Regions Group-Midlands - RD,Grants Area
28,DCMS,Historic England,17/01/2024,SoftwareOne UK Ltd,0042004986,"137,389.20",Corporate Services-IMT,Software Maintenance
29,DCMS,Historic England,31/01/2024,SoftwareOne UK Ltd,0042005014,"18,461.04",Corporate Services-IMT,Software Maintenance
30,DCMS,Historic England,31/01/2024,SoftwareOne UK Ltd,0042005014,"19,144.32",Corporate Services-IMT,Software Maintenance
31,DCMS,Historic England,31/01/2024,SoftwareOne UK Ltd,0042005014,"19,144.32",Corporate Services-IMT,Software Maintenance
32,DCMS,Historic England,22/01/2024,SoftwareOne UK Ltd,0042005077,"97,200.71",Corporate Services-IMT,Hosting
33,DCMS,Historic England,26/01/2024,SoftwareOne UK Ltd,0042005404,"97,965.56",Corporate Services-IMT,Hosting
34,DCMS,Historic England,24/01/2024,SoftwareOne UK Ltd,0042005405,"42,665.88",Corporate Services-IMT,Software Maintenance
35,DCMS,Historic England,04/01/2024,SQW Limited,0042004882,"30,405.60",Regions Group-Regions Group Centre,Bought in Research
36,DCMS,Historic England,29/01/2024,Stoke-On-Tent City Council,0090516689,"31,283.00",Regions Group-Midlands - RD,Grants Capacity Building Grants
37,DCMS,Historic England,18/01/2024,Stoke-on-Trent City Council,0090516682,"25,732.00",Regions Group-Midlands - RD,Grants Capacity Building Grants
38,DCMS,Historic England,02/01/2024,T Coleborn & Son Ltd,0042005276,"63,623.40",Policy & Evidence-National Specialist Services,Repairs
39,DCMS,Historic England,29/01/2024,T Coleborn & Son Ltd,0042005808,"38,469.42",Policy & Evidence-National Specialist Services,Repairs
40,DCMS,Historic England,08/01/2024,TeamViewer Germany GmbH,0042005382,"28,050.00",Corporate Services-IMT,Software Maintenance
41,DCMS,Historic England,10/01/2024,The Architectural Heritage Fund,0081006878,"134,833.00",Business Improvement-Grants,Grants Capacity Building Grants
42,DCMS,Historic England,24/01/2024,Wentworth Woodhouse Preservation Trust,0083002272,"40,935.00",Regions Group-Regions Group Centre,Grants Historic Buildings
43,DCMS,Historic England,31/01/2024,Worksop Priory and Gatehouse,0082006458,"52,192.00",Regions Group-Midlands - RD,Grants Historic Buildings
44,DCMS,Historic England,23/01/2024,XMA Limited,0042005601,"89,632.90",Corporate Services-IMT,End User Contracts
